fUST/lending_fUST_20240110
["ID","MTS","AMOUNT","RATE_DAILY","PERIOD"]
[311041672,1704887441921,-550.32549553,0.00027668,4]
[311041674,1704887441931,-260.10869007,0.00027668,4]
[311041676,1704887441941,-327.27121741,0.00027668,4]
[311041677,1704887441950,-500.0,0.00027668,4]
[311041678,1704887441960,-500.0,0.00027668,4]
[311041679,1704887441969,-500.0,0.00027668,4]
[311041680,1704887441979,-500.0,0.00027668,4]
[311041681,1704887441989,-500.0,0.00027668,4]
[311041682,1704887441999,-500.0,0.00027668,4]
[311041683,1704887442009,-500.0,0.00027668,4]
[311041684,1704887442019,-508.75646092,0.00027668,4]
[311041685,1704887442029,-193718.12607288,0.00027669,2]
[311041686,1704887442046,-29185.51760677,0.00027669,2]
[311041687,1704887442056,-500.0,0.00027671,2]
[311041688,1704887442065,-500.0,0.00027671,2]
[311041689,1704887442075,-658.58,0.00027671,2]
[311041690,1704887442085,-500.0,0.00027671,2]
[311041691,1704887442095,-724.31,0.00027671,2]
[311041692,1704887442105,-500.0,0.00027671,2]
[311041693,1704887442116,-500.0,0.00027671,2]
[311041694,1704887442126,-500.0,0.00027671,2]
[311041695,1704887442137,-500.0,0.00027671,2]
[311041696,1704887442146,-500.0,0.00027671,2]
[311041697,1704887442156,-500.0,0.00027671,2]
[311041698,1704887442165,-500.0,0.00027671,2]
[311041699,1704887442175,-522.33,0.00027671,2]
[311041700,1704887442183,-500.0,0.00027671,2]
[311041701,1704887442193,-500.0,0.00027671,2]
[311041702,1704887442203,-500.0,0.00027671,2]
[311041703,1704887442212,-500.0,0.00027671,2]
[311041704,1704887442221,-500.0,0.00027671,2]
[311041705,1704887442231,-1213.56,0.00027671,2]
[311041706,1704887442241,-500.0,0.00027671,2]
[311041707,1704887442251,-500.0,0.00027671,2]
[311041708,1704887442261,-1233.56,0.00027671,2]
[311041709,1704887442271,-451.32622633,0.00027671,2]
[311041710,1704887442281,-500.0,0.00027671,2]
[311041711,1704887442290,-648.95,0.00027671,2]
[311041712,1704887442300,-1047.57,0.00027671,2]
[311041713,1704887442310,-500.0,0.00027671,2]
[311041714,1704887442320,-500.0,0.00027671,2]
[311041715,1704887442330,-500.0,0.00027671,2]
[311041716,1704887442339,-500.0,0.00027671,2]
[311041717,1704887442348,-500.0,0.00027671,2]
[311041718,1704887442358,-500.0,0.00027671,2]
[311041719,1704887442367,-500.0,0.00027671,2]
[311041720,1704887442377,-625.95,0.00027671,2]
[311041721,1704887442386,-500.0,0.00027671,2]
[311041722,1704887442396,-500.0,0.00027671,2]
[311041723,1704887442405,-500.0,0.00027671,2]
[311041730,1704887442519,-500.0,0.00027671,2]
[311041732,1704887442529,-500.0,0.00027671,2]
[311041734,1704887442540,-500.0,0.00027671,2]
[311041736,1704887442550,-2663.69,0.00027671,2]
[311041738,1704887442560,-500.0,0.00027671,2]
[311041740,1704887442570,-500.0,0.00027671,2]
[311041741,1704887442579,-500.0,0.00027671,2]
[311041743,1704887442588,-254.15774864,0.00027671,2]
[311041745,1704887442597,-500.0,0.00027671,2]
[311041747,1704887442607,-500.0,0.00027671,2]
[311041749,1704887442617,-500.0,0.00027671,2]
[311041751,1704887442627,-1216.93,0.00027671,2]
[311041753,1704887442636,-500.0,0.00027671,2]
[311041756,1704887442646,-914.32,0.00027671,2]
[311041758,1704887442655,-6606.64,0.00027671,2]
[311041759,1704887442664,-647.68493227,0.00027671,2]
[311041761,1704887442673,-4738.41,0.00027671,2]
[311041763,1704887442682,-500.0,0.00027671,2]
[311041766,1704887442691,-500.0,0.00027671,2]
[311041768,1704887442699,-500.0,0.00027671,2]
[311041770,1704887442708,-6135.42,0.00027671,2]
[311041772,1704887442718,-500.0,0.00027671,2]
[311041774,1704887442727,-500.0,0.00027671,2]
[311041776,1704887442736,-1046.34,0.00027671,2]
[311041778,1704887442745,-500.0,0.00027671,2]
[311041781,1704887442753,-1386.21,0.00027671,2]
[311041783,1704887442762,-2821.64,0.00027671,2]
[311041785,1704887442771,-500.0,0.00027671,2]
[311041788,1704887442780,-500.0,0.00027671,2]
[311041791,1704887442789,-572.47,0.00027671,2]
[311041793,1704887442798,-532.07667742,0.00027671,2]
[311041795,1704887442807,-500.0,0.00027671,2]
[311041798,1704887442817,-530.23,0.00027671,2]
[311041801,1704887442826,-4499.83,0.00027671,2]
[311041804,1704887442835,-500.0,0.00027671,5]
[311041807,1704887442845,-500.0,0.00027671,2]
[311041810,1704887442854,-500.0,0.00027671,2]
[311041813,1704887442863,-500.0,0.00027671,2]
[311041816,1704887442872,-1654.38,0.00027671,2]
[311041819,1704887442881,-40337.59,0.00027671,2]
[311041822,1704887442889,-500.0,0.00027671,2]
[311041825,1704887442898,-500.0,0.00027671,2]
[311041828,1704887442907,-500.0,0.00027671,2]
[311041831,1704887442916,-500.0,0.00027671,2]
[311041834,1704887442925,-500.0,0.00027671,2]
[311041837,1704887442933,-500.0,0.00027671,2]
[311041839,1704887442942,-1557.43,0.00027671,2]
[311041841,1704887442951,-1780.65,0.00027671,2]
[311041844,1704887442960,-500.0,0.00027671,2]
[311041847,1704887442969,-500.0,0.00027671,2]
[311041850,1704887442978,-500.0,0.00027671,2]
[311041852,1704887442987,-416.32539612,0.00027671,2]
[311041854,1704887442996,-2236.92,0.00027671,2]
[311041856,1704887443005,-500.0,0.00027671,2]
[311041858,1704887443014,-14837.92,0.00027671,2]
[311041860,1704887443023,-500.0,0.00027671,2]
[311041862,1704887443032,-500.0,0.00027671,2]
[311041864,1704887443041,-500.0,0.00027671,2]
[311041866,1704887443050,-719.6,0.00027671,2]
[311041868,1704887443059,-500.0,0.00027671,2]
[311041870,1704887443068,-500.0,0.00027671,2]
[311041871,1704887443077,-500.0,0.00027671,2]
[311041873,1704887443086,-500.0,0.00027671,2]
[311041875,1704887443095,-500.0,0.00027671,2]
[311041877,1704887443104,-500.0,0.00027671,2]
[311041879,1704887443113,-500.27922658,0.00027671,2]
[311041881,1704887443123,-765.03,0.00027671,2]
[311041883,1704887443132,-500.0,0.00027671,2]
[311041885,1704887443141,-1000.0,0.00027671,2]
[311041887,1704887443150,-3800.67,0.00027671,2]
[311041889,1704887443161,-500.0,0.00027671,2]
[311041891,1704887443171,-500.0,0.00027671,2]
[311041893,1704887443179,-2339.67,0.00027671,2]
[311041895,1704887443188,-1364.11,0.00027671,2]
[311041897,1704887443197,-500.0,0.00027671,2]
[311041899,1704887443206,-1114.85,0.00027671,2]
[311041901,1704887443214,-651.48,0.00027671,2]
[311041903,1704887443224,-500.0,0.00027671,2]
[311041905,1704887443233,-500.0,0.00027671,2]
[311041907,1704887443242,-500.0,0.00027671,2]
[311041909,1704887443251,-500.0,0.00027671,2]
[311041911,1704887443261,-500.0,0.00027671,2]
[311041912,1704887443270,-500.0,0.00027671,2]
[311041914,1704887443278,-500.0,0.00027671,2]
[311041916,1704887443288,-500.0,0.00027671,2]
[311041918,1704887443297,-500.0,0.00027671,2]
[311041920,1704887443306,-500.0,0.00027671,2]
[311041922,1704887443315,-1186.35,0.00027671,2]
[311041924,1704887443325,-500.0,0.00027671,2]
[311041926,1704887443334,-500.0,0.00027671,2]
[311041928,1704887443344,-3109.21,0.00027671,2]
[311041930,1704887443352,-1149.53,0.00027671,2]
[311041931,1704887443362,-500.0,0.00027671,2]
[311041933,1704887443371,-1599.46,0.00027671,2]
[311041935,1704887443380,-687.59711705,0.000277,2]
[311041937,1704887443389,-620.17250594,0.0002772,2]
[311041939,1704887443398,-1000.0,0.00027729,2]
[311041940,1704887443408,-922.14010784,0.00027741,2]
[311041942,1704887443416,-1000.0,0.00027775,2]
[311041944,1704887443425,-1000.0,0.00027799,2]
[311041946,1704887443434,-500.0,0.00027808,2]
[311041948,1704887443443,-154.61361981,0.00027845,2]
[311041950,1704887443452,-1000.0,0.00027846,2]
[311041952,1704887443461,-9098.22062588,0.00027849,4]
[311041954,1704887443470,-1000.0,0.00027879,2]
[311041956,1704887443479,-1000.0,0.00027896,2]
[311041958,1704887443488,-1000.0,0.00027928,2]
[311041960,1704887443496,-500.0,0.00027945,2]
[311041961,1704887443505,-272.45921452,0.00027945,2]
[311041963,1704887443514,-658.58,0.00027945,2]
[311041965,1704887443523,-500.0,0.00027945,2]
[311041967,1704887443532,-724.31,0.00027945,2]
[311041969,1704887443541,-500.0,0.00027945,2]
[311041971,1704887443550,-500.0,0.00027945,2]
[311041973,1704887443559,-500.0,0.00027945,2]
[311041975,1704887443568,-500.0,0.00027945,2]
[311041977,1704887443577,-351.97873443,0.00027945,2]
[311041979,1704887443587,-500.0,0.00027945,2]
[311041980,1704887443596,-500.0,0.00027945,2]
[311041982,1704887443605,-522.33,0.00027945,2]
[311041984,1704887443613,-483.35962442,0.00027945,2]
[311041986,1704887443622,-500.0,0.00027945,2]
[311041988,1704887443631,-500.0,0.00027945,2]
[311041990,1704887443640,-392.95669236,0.00027945,2]
[311041992,1704887443648,-500.0,0.00027945,2]
[311041994,1704887443657,-1213.56,0.00027945,2]
[311041996,1704887443667,-500.0,0.00027945,2]
[311041998,1704887443677,-500.0,0.00027945,2]
[311042000,1704887443686,-1233.56,0.00027945,2]
[311042001,1704887443694,-500.0,0.00027945,2]
[311042003,1704887443704,-648.95,0.00027945,2]
[311042004,1704887443714,-1047.57,0.00027945,2]
[311042005,1704887443723,-500.0,0.00027945,2]
[311042006,1704887443732,-500.0,0.00027945,2]
[311042008,1704887443741,-500.0,0.00027945,2]
[311042010,1704887443751,-461.93363699,0.00027945,2]
[311042012,1704887443760,-500.0,0.00027945,2]
[311042014,1704887443769,-500.0,0.00027945,2]
[311042016,1704887443778,-500.0,0.00027945,2]
[311042017,1704887443787,-625.95,0.00027945,2]
[311042019,1704887443796,-500.0,0.00027945,2]
[311042021,1704887443806,-500.0,0.00027945,2]
[311042023,1704887443815,-500.0,0.00027945,2]
[311042025,1704887443824,-500.0,0.00027945,2]
[311042027,1704887443833,-500.0,0.00027945,2]
[311042029,1704887443843,-500.0,0.00027945,2]
[311042031,1704887443852,-2663.69,0.00027945,2]
[311042033,1704887443861,-500.0,0.00027945,2]
[311042035,1704887443870,-500.0,0.00027945,2]
[311042037,1704887443879,-500.0,0.00027945,2]
[311042039,1704887443887,-500.0,0.00027945,2]
[311042041,1704887443896,-500.0,0.00027945,2]
[311042043,1704887443906,-500.0,0.00027945,2]
[311042045,1704887443916,-1216.93,0.00027945,2]
[311042046,1704887443925,-914.32,0.00027945,2]
[311042048,1704887443935,-6606.64,0.00027945,2]
[311042050,1704887443944,-4738.41,0.00027945,2]
[311042052,1704887443953,-500.0,0.00027945,2]
[311042054,1704887443962,-500.0,0.00027945,2]
[311042056,1704887443971,-500.0,0.00027945,2]
[311042058,1704887443980,-6135.42,0.00027945,2]
[311042060,1704887443989,-500.0,0.00027945,2]
[311042061,1704887443998,-500.0,0.00027945,2]
[311042062,1704887444007,-1046.34,0.00027945,2]
[311042063,1704887444016,-500.0,0.00027945,2]
[311042064,1704887444025,-1386.21,0.00027945,2]
[311042065,1704887444036,-2821.64,0.00027945,2]
[311042066,1704887444045,-500.0,0.00027945,2]
[311042067,1704887444053,-517.73035116,0.00027945,2]
[311042068,1704887444062,-572.47,0.00027945,2]
[311042069,1704887444072,-500.0,0.00027945,2]
[311042070,1704887444081,-530.23,0.00027945,2]
[311042071,1704887444089,-4499.83,0.00027945,2]
[311042072,1704887444098,-500.0,0.00027945,5]
[311042073,1704887444107,-500.0,0.00027945,2]
[311042074,1704887444116,-500.0,0.00027945,2]
[311042075,1704887444126,-500.0,0.00027945,2]
[311042076,1704887444135,-1654.38,0.00027945,2]
[311042078,1704887444144,-40337.59,0.00027945,2]
[311042079,1704887444153,-500.0,0.00027945,2]
[311042080,1704887444163,-500.0,0.00027945,2]
[311042082,1704887444172,-262.71124088,0.00027945,2]
[311042084,1704887444181,-624.43807266,0.00027945,2]
[311042085,1704887444190,-500.0,0.00027945,2]
[311042086,1704887444199,-600.72202178,0.00027945,2]
[311042088,1704887444209,-1557.43,0.00027945,2]
[311042090,1704887444218,-1780.65,0.00027945,2]
[311042092,1704887444227,-500.0,0.00027945,2]
[311042093,1704887444237,-500.0,0.00027945,2]
[311042094,1704887444246,-500.0,0.00027945,2]
[311042095,1704887444258,-2236.92,0.00027945,2]
[311042096,1704887444267,-500.0,0.00027945,2]
[311042097,1704887444277,-14837.92,0.00027945,2]
[311042098,1704887444286,-500.0,0.00027945,2]
[311042099,1704887444295,-500.0,0.00027945,2]
[311042100,1704887444304,-359.97101555,0.00027945,2]
[311042101,1704887444313,-719.6,0.00027945,2]
[311042102,1704887444323,-500.0,0.00027945,2]
[311042103,1704887444332,-500.0,0.00027945,2]
[311042104,1704887444342,-500.0,0.00027945,2]
[311042105,1704887444351,-500.0,0.00027945,2]
[311042106,1704887444360,-500.0,0.00027945,2]
[311042107,1704887444370,-765.03,0.00027945,2]
[311042108,1704887444379,-500.0,0.00027945,2]
[311042109,1704887444389,-734.41555908,0.00027945,2]
[311042110,1704887444399,-3800.67,0.00027945,2]
[311042111,1704887444408,-373.94050731,0.00027945,2]
[311042112,1704887444418,-500.0,0.00027945,2]
[311042113,1704887444428,-2339.67,0.00027945,2]
[311042114,1704887444438,-1364.11,0.00027945,2]
[311042115,1704887444447,-500.0,0.00027945,2]
[311042116,1704887444457,-1114.85,0.00027945,2]
[311042117,1704887444466,-651.48,0.00027945,2]
[311042118,1704887444476,-500.0,0.00027945,2]
[311042119,1704887444485,-500.0,0.00027945,2]
[311042120,1704887444494,-500.0,0.00027945,2]
[311042121,1704887444508,-428.04452194,0.00027945,2]
[311042122,1704887444556,-71.95547806,0.00027945,2]
[311042123,1704887444566,-500.0,0.00027945,2]
[311042124,1704887444575,-500.0,0.00027945,2]
[311042125,1704887444584,-500.0,0.00027945,2]
[311042126,1704887444593,-279.00568243,0.00027945,2]
[311042127,1704887444602,-500.0,0.00027945,2]
[311042128,1704887444612,-500.0,0.00027945,2]
[311042129,1704887444621,-1186.35,0.00027945,2]
[311042130,1704887444631,-500.0,0.00027945,2]
[311042131,1704887444640,-500.0,0.00027945,2]
[311042132,1704887444649,-3109.21,0.00027945,2]
[311042133,1704887444658,-211.089356,0.00027945,2]
[311042134,1704887444675,-938.440644,0.00027945,2]
[311042135,1704887444684,-500.0,0.00027945,2]
[311042136,1704887444693,-1599.46,0.00027945,2]
[311042137,1704887444702,-1000.0,0.00027955,2]
[311042138,1704887444711,-1000.0,0.00027961,2]
[311042139,1704887444721,-154.90705577,0.00028,2]
[311042140,1704887444731,-155.43980469,0.00028,2]
[311042141,1704887444741,-1500.0,0.00028,2]
[311042142,1704887444751,-143.19684568,0.00028082,2]
[311042143,1704887444994,-1234.12,0.00027397,2]
[311042144,1704887445004,-500.0,0.00027397,2]
[311042145,1704887445014,-500.0,0.00027397,2]
[311042146,1704887445023,-1234.12,0.00027671,2]
[311042147,1704887445032,-500.0,0.00027671,2]
[311042148,1704887445041,-500.0,0.00027671,2]
[311042149,1704887445051,-1234.12,0.00027945,2]
[311042150,1704887445060,-500.0,0.00027945,2]
[311042151,1704887445070,-356.80315432,0.00028082,2]
[311042152,1704887445078,-5075.84209267,0.00028217,2]
[311042153,1704887445087,-309.62844586,0.00028217,2]
[311042154,1704887445097,-643.32630078,0.00028218,2]
[311042155,1704887445206,-1533.68702657,0.00028218,2]
[311042156,1704887445334,-476.32928406,0.00027397,2]
[311042157,1704887445346,-23.67071594,0.00027397,2]
[311042158,1704887445355,-500.0,0.00027671,2]
[311042159,1704887445364,-500.0,0.00027945,2]
[311042160,1704887445374,-543.92531298,0.00027945,2]
[311042161,1704887445383,-655.58845969,0.00028218,2]
[311042162,1704887445394,-500.0,0.00028219,2]
[311042163,1704887445403,-658.58,0.00028219,2]
[311042164,1704887445412,-500.0,0.00028219,2]
[311042165,1704887445422,-724.31,0.00028219,2]
[311042166,1704887445431,-361.14165218,0.00028219,2]
[311042167,1704887445440,-500.0,0.00028219,2]
[311042168,1704887445450,-500.0,0.00028219,2]
[311042169,1704887445459,-479.00615631,0.00028219,2]
[311042170,1704887445468,-500.0,0.00028219,2]
[311042171,1704887445477,-500.0,0.00028219,2]
[311042172,1704887445487,-522.33,0.00028219,2]
[311042173,1704887445496,-500.0,0.00028219,2]
[311042174,1704887445505,-500.0,0.00028219,2]
[311042175,1704887445515,-500.0,0.00028219,2]
[311042176,1704887445525,-1010.78814424,0.00028219,2]
[311042191,1704887446516,-202.77185576,0.00028219,2]
[311042192,1704887446525,-142.81491493,0.00028219,2]
[311042193,1704887466411,19147.39691322,0.000295,30]
[311042309,1704887628068,10000.0,0.0002115,10]
[311042315,1704887653844,10000.0,0.000135,2]
[311042322,1704887706621,5210.03643091,0.000135,2]
[311042323,1704887707865,154.90705577,0.000135,2]
[311042324,1704887708270,10280.02525619,0.000135,2]
[311042325,1704887708617,265.90298061,0.000135,2]
[311042326,1704887709072,298.15345662,0.000135,2]
[311042327,1704887717212,619.44144137,0.000135,2]
[311042328,1704887720690,342.40737445,0.000135,2]
[311042330,1704887724262,10280.02525619,0.000135,2]
[311042331,1704887725073,298.15345662,0.000135,2]
[311042332,1704887727141,5210.03643091,0.000135,2]
[311042333,1704887729870,154.90705577,0.000135,2]
[311042335,1704887734899,345.74572242,0.000135,2]
[311042336,1704887735210,619.44144137,0.000135,2]
[311042338,1704887742266,10280.02525619,0.000135,2]
[311042339,1704887743073,264.33754491,0.000135,2]
[311042340,1704887743165,5210.03643091,0.000135,2]
[311042343,1704887749866,158.00325692,0.000135,2]
[311042344,1704887759206,662.55827813,0.000135,2]
[311042345,1704887759633,4600.4609329,0.000135,2]
[311042347,1704887766269,9240.83463988,0.000135,2]
[311042351,1704887810536,150.90945433,0.00029659,30]
[311042432,1704888454560,15000.0,0.0003,30]
[311042454,1704888621431,10000.0,0.0003,30]
[311042530,1704888632287,-2029.97306616,0.00018188,2]
[311042531,1704888632297,-239.82693384,0.00018189,2]
[311042690,1704888641033,-6.22666279,0.00018189,2]
[311042691,1704888641043,-178.51706094,0.00018189,2]
[311042692,1704888641053,-19828.39990193,0.00018189,2]
[311042693,1704888641062,-7943.71182072,0.0001819,2]
[311042694,1704888641070,-280.464338,0.00018193,2]
[311042695,1704888641080,-174.03475595,0.00018991,2]
[311042696,1704888641089,-24900.0,0.00019092,2]
[311042697,1704888641098,-1112.08388858,0.000195,2]
[311042698,1704888641107,-177.582831,0.00019757,2]
[311042699,1704888641117,-154.61361981,0.000199,2]
[311042700,1704888641126,-27915.39,0.0001997,3]
[311042701,1704888641135,-18654.36193049,0.0001998,3]
[311042702,1704888641328,-154.93802479,0.00018187,3]
[311042703,1704888641338,-2070.35788054,0.00019988,2]
[311042704,1704888641347,-2182.52660228,0.00019999,2]
[311042705,1704888641356,-154.93802479,0.0002,2]
[311042706,1704888641366,-13662.07417965,0.0002,2]
[311042707,1704888641381,-209241.5695,0.0002,2]
[311042708,1704888641390,-266.19065175,0.0002,2]
[311042709,1704888641399,-154.93802479,0.0002,2]
[311042710,1704888641408,-676.96253794,0.0002,2]
[311042711,1704888641418,-154.93802479,0.0002,2]
[311042712,1704888641427,-853.57612089,0.0002,2]
[311042713,1704888641437,-236.79527182,0.0002,2]
[311042714,1704888641446,-1195.09669838,0.0002,2]
[311042715,1704888641458,-200.0,0.00020999,2]
[311042716,1704888641467,-14321.05377755,0.00021,2]
[311042717,1704888641477,-1773.96892399,0.00021,2]
[311042718,1704888641486,-193.95210286,0.00021,2]
[311042719,1704888641496,-1545.49856196,0.00021,2]
[311042720,1704888641505,-326.73090334,0.00021,2]
[311042721,1704888641514,-260.24433646,0.00021147,2]
[311042722,1704888641524,-3578.67722332,0.00021147,2]
[311042723,1704888641533,-298.58194452,0.00021147,2]
[311042724,1704888641542,-521.86347357,0.00021147,2]
[311042725,1704888641551,-260.92582316,0.00021148,2]
[311042726,1704888641561,-162.75529733,0.00021148,2]
[311042727,1704888641570,-24270.25143968,0.00021149,2]
[311042728,1704888641580,-166.666666,0.00021918,2]
[311042729,1704888641685,-6308.12021343,0.00021999,2]
[311042730,1704888641694,-292.83058016,0.00022,4]
[311042731,1704888641704,-4917.8600325,0.00022,2]
[311042732,1704888641715,-156.86767994,0.00022,2]
[311042733,1704888641724,-3931.75997852,0.00022,2]
[311042734,1704888641733,-166.666666,0.00022431,2]
[311042735,1704888641742,-166.666666,0.00022944,2]
[311042736,1704888641751,-9920.80434626,0.00023,2]
[311042737,1704888641760,-2093.08732709,0.00023,2]
[311042738,1704888641769,-166.666666,0.00023456,2]
[311042739,1704888641779,-166.666666,0.00023969,2]
[311042740,1704888641789,-614.01289661,0.00024,2]
[311042741,1704888641799,-166.666666,0.00024482,2]
[311042742,1704888641809,-500.0,0.00024999,4]
[311042743,1704888641820,-500.0,0.00024999,4]
[311042744,1704888641829,-327.27121741,0.00024999,4]
[311042745,1704888641838,-500.0,0.00024999,4]
[311042746,1704888641848,-260.10869007,0.00024999,4]
[311042747,1704888641859,-500.0,0.00024999,4]
[311042748,1704888641870,-500.0,0.00024999,4]
[311042749,1704888641879,-550.32549553,0.00024999,4]
[311042750,1704888641888,-508.75646092,0.00024999,4]
[311042751,1704888641897,-500.0,0.00024999,4]
[311042752,1704888641906,-500.0,0.00024999,4]
[311042753,1704888641916,-500.0,0.00024999,4]
[311042754,1704888641925,-500.0,0.00024999,4]
[311042755,1704888641934,-500.0,0.00024999,4]
[311042756,1704888641943,-997.46963762,0.00025,2]
[311042757,1704888641952,-677.45880314,0.00025,2]
[311042758,1704888641962,-16255.58780666,0.00025,2]
[311042759,1704888641971,-3000.0,0.00025,2]
[311042760,1704888641980,-4711.08145103,0.00025,2]
[311042761,1704888641990,-1004.65983997,0.00025,2]
[311042762,1704888641999,-2293.16748545,0.00025384,2]
[311042763,1704888642008,-2412.63126931,0.00025845,2]
[311042764,1704888642018,-525.91402641,0.00026,2]
[311042765,1704888642027,-341.9655813,0.00026805,5]
[311042766,1704888642036,-154.90705577,0.00026998,2]
[311042767,1704888642046,-946.99985386,0.00026999,2]
[311042768,1704888642056,-560.22977717,0.00026999,2]
[311042769,1704888642067,-1401.83836595,0.00027,3]
[311042770,1704888642076,-733.25771754,0.00027,2]
[311042771,1704888642084,-1500.0,0.00027,2]
[311042772,1704888642094,-19500.94080232,0.00027108,2]
[311042773,1704888642102,-4545.6337973,0.00027108,2]
[311042774,1704888642111,-5000.0,0.00027108,2]
[311042775,1704888642120,-2391.29830169,0.00027108,2]
[311042776,1704888642129,-276000.0,0.00027297,2]
[311042777,1704888642138,-901.30981836,0.00027394,2]
[311042778,1704888642147,-2178.21480533,0.00027396,2]
[311042779,1704888642156,-500.0,0.00027397,2]
[311042780,1704888642165,-500.0,0.00027397,2]
[311042781,1704888642174,-500.0,0.00027397,2]
[311042782,1704888642183,-500.0,0.00027397,2]
[311042783,1704888642192,-500.0,0.00027397,2]
[311042784,1704888642204,-628.12312548,0.00027397,2]
[311042785,1704888642214,-500.0,0.00027397,2]
[311042786,1704888642223,-500.0,0.00027397,2]
[311042787,1704888642231,-500.0,0.00027397,2]
[311042788,1704888642242,-500.0,0.00027397,2]
[311042789,1704888642251,-487.58815819,0.00027397,2]
[311042790,1704888642261,-1000.0,0.00027397,4]
[311042791,1704888642269,-505.4460893,0.00027397,2]
[311042792,1704888642281,-500.0,0.00027397,2]
[311042793,1704888642292,-527.53763568,0.00027397,2]
[311042794,1704888642302,-500.0,0.00027397,2]
[311042795,1704888642312,-500.0,0.00027397,2]
[311042796,1704888642321,-500.0,0.00027397,2]
[311042797,1704888642330,-520.33022276,0.00027397,2]
[311042798,1704888642341,-500.0,0.00027397,2]
[311042799,1704888642351,-674.59,0.00027397,2]
[311042800,1704888642360,-500.0,0.00027397,2]
[311042801,1704888642369,-501.4790848,0.00027397,2]
[311042802,1704888642379,-500.0,0.00027397,2]
[311042803,1704888642388,-500.0,0.00027397,2]
[311042804,1704888642396,-513.86339922,0.00027397,2]
[311042805,1704888642405,-500.0,0.00027397,2]
[311042806,1704888642415,-500.0,0.00027397,2]
[311042807,1704888642427,-267.51566206,0.00027397,2]
[311042808,1704888642439,-500.0,0.00027397,2]
[311042809,1704888642449,-514.68645704,0.00027397,2]
[311042810,1704888642458,-500.0,0.00027397,2]
[311042811,1704888642468,-215.0521032,0.00027397,2]
[311042812,1704888642477,-500.0,0.00027397,2]
[311042813,1704888642486,-500.0,0.00027397,2]
[311042814,1704888642495,-183.74233471,0.00027397,2]
[311042815,1704888642505,-500.0,0.00027397,2]
[311042816,1704888642514,-500.0,0.00027397,2]
[311042817,1704888642523,-570.75622385,0.00027397,2]
[311042818,1704888642532,-500.0,0.00027397,2]
[311042819,1704888642542,-500.0,0.00027397,2]
[311042820,1704888642551,-500.0,0.00027397,2]
[311042821,1704888642561,-500.0,0.00027397,2]
[311042822,1704888642572,-500.0,0.00027397,2]
[311042823,1704888642582,-500.0,0.00027397,2]
[311042824,1704888642594,-500.0,0.00027397,2]
[311042825,1704888642606,-500.0,0.00027397,2]
[311042826,1704888642617,-503.66651068,0.00027397,2]
[311042827,1704888642628,-500.0,0.00027397,2]
[311042828,1704888642637,-500.0,0.00027397,2]
[311042829,1704888642646,-500.0,0.00027397,2]
[311042830,1704888642655,-533.78,0.00027397,2]
[311042831,1704888642665,-505.71191122,0.00027397,2]
[311042832,1704888642674,-639.25358245,0.00027397,2]
[311042833,1704888642683,-536.20111907,0.00027397,2]
[311042834,1704888642692,-500.0,0.00027397,2]
[311042835,1704888642701,-1668.17,0.00027397,2]
[311042836,1704888642710,-500.0,0.00027397,2]
[311042837,1704888642720,-500.0,0.00027397,2]